Cogmind - Beta 13 @@@ ROGUE MODE // 2024.04.02 @ 01:38:49 Player: Luca Result: Smashed by cave-in Performance ------------- Evolutions (0) 0 Regions Visited (2) 400 Robots Destroyed (8) 40 Value Destroyed (228) 228 Prototype IDs (0) 0 Alien Tech Used (0) 0 Bonus (-29) -29 TOTAL SCORE: 639 Bonus ------- Friendly Fire -29 Cogmind --------- Core Integrity 0/250 Matter 277/300 Energy 24/100 System Corruption 19% Temperature Cool (9) Movement Rolling (110) Location -10/Subcaves Parts ------- > --- POWER (1) -------- (None) > --- PROPULSION (2) --- Subdweller Monowheel > --- UTILITY (2) ------ (None) > --- WEAPON (2) ------- Subdweller Beam Cannon > --- INVENTORY (5) ---- Subdweller Machine Gun Scrap Shield Fragment (42) Peak State ------------ > --- POWER ------------ (None) > --- PROPULSION ------- Subdweller Monowheel Subdweller Monowheel > --- UTILITY ---------- Scrap Shield > --- WEAPON ----------- Subdweller Machine Gun Makeshift Sword > --- INVENTORY -------- Subdweller Beam Cannon Flamer Scrap Shield Fragment [Rating: 14] Favorites ----------- Power Light Ion Engine Engine Light Ion Engine Propulsion Wheel Wheel Wheel Utility Scrap Shield Device Terrain Scanner Storage Large Storage Unit Processor Terrain Scan Processor Protection Scrap Shield Weapon Medium Laser Energy Gun Medium Laser Energy Cannon Subdweller Beam Cannon Ballistic Gun Subdweller Machine Gun Launcher Grenade Launcher Special Weapon Mining Laser Slashing Weapon Makeshift Sword Build | -11 -10 -10 ------- Run | Yrd Mat Sub Slots Evolved . | . . . Power . | . . . Propulsion . | . . . Utility . | . . . Weapon . | . . . Parts Attached 39 | 5 12 22 Power 2 | 1 . 1 Engine 2 | 1 . 1 Core . | . . . Reactor . | . . . Propulsion 11 | 2 5 4 Treads . | . . . Leg . | . . . Wheel 11 | 2 5 4 Hover . | . . . Flight . | . . . Utility 5 | . 3 2 Device 1 | . 1 . Storage 2 | . 1 1 Processor 1 | . 1 . Hackware . | . . . Protection 1 | . . 1 Artifact . | . . . Weapon 21 | 2 4 15 Energy Gun 8 | 2 2 4 Energy Cannon 1 | . . 1 Ballistic Gun 1 | . . 1 Ballistic Cannon . | . . . Launcher 5 | . 1 4 Special Weapon 5 | . 1 4 Impact Weapon . | . . . Slashing Weapon 1 | . . 1 Piercing Weapon . | . . . Special Melee Weapon . | . . . Unidentified Prototypes . | . . . Parts Lost 6 | . . 6 Power 1 | . . 1 Propulsion 1 | . . 1 Utility 1 | . . 1 Weapon 3 | . . 3 Highest Loss Streak 6 | . . 6 To Critical Strikes . | . . . Average Slot Usage (%) 86 | . 91 84 Engine 13 | . 14 13 Wheel 27 | . 28 27 Device 3 | . 8 . Storage 1 | . 3 . Processor 3 | . 8 . Protection 8 | . . 13 Energy Gun 15 | . 23 11 Ballistic Gun 5 | . . 7 Special Weapon 5 | . 2 8 Naked Turns . | . . . Heaviest Build 28 | 6 28 27 Greatest Support 40 | 20 20 40 Greatest Overweight (x) 1 | . 1 1 Average Overweight (x) . | . . . Largest Inventory Capacity 15 | 5 15 15 Average Capacity 5 | 5 7 5 Most Carried 7 | 3 5 7 Average Carried 4 | . 4 4 Final Capacity 5 | 5 5 5 Final Carried 5 | 3 5 2 Class Distribution -------------------- 48% | Subdweller-Mutant 37% | Mutant 13% | Scavenger-Mutant Dominant Class ---------------- Mutant | -10/Materials Subdweller-Mutant | -10/Subcaves Resources | -11 -10 -10 ----------- Run | Yrd Mat Sub Matter Collected 630 | 250 150 230 Remotely . | . . . Salvage Created 204 | 69 57 78 Parts 16 | 3 7 6 Haulers Intercepted . | . . . Recyclers Shooed . | . . . Parts Field Recycled . | . . . Retrieved Matter . | . . . Parts Self-Destructed 5 | . . 5 Prevented . | . . . Kills | -11 -10 -10 ------- Run | Yrd Mat Sub Combat Hostiles Destroyed 5 | 1 2 2 Guns 1 | 1 . . AOE 4 | . 2 2 Classes Destroyed 5 | 2 2 1 Worker 1 | . 1 . Builder 1 | . 1 . Tunneler 1 | 1 . . Grunt 3 | 1 2 . Subdweller 2 | . . 2 Best Kill Streak 2 | 2 2 2 Combat Bots Only 2 | 1 2 2 Max Kills in Single Turn 2 | 2 1 2 Gunslinging . | . . . Exploded 2 | . 1 2 Melee . | . . . Uniques/NPCs Destroyed . | . . . Combat | -11 -10 -10 -------- Run | Yrd Mat Sub Hostile Shots Fired 32 | 6 10 16 Missed 15 | 3 6 6 Damage Taken 1179 | 34 92 1053 Core 253 | . 15 238 Absorbed by Shields . | . . . Core Remaining (%) 100 | 100 . . Volleys Fired 65 | 5 19 41 Largest 2 | 2 2 2 Hottest 180 | 90 100 180 Shots Fired 82 | 10 28 44 Gun 26 | 10 14 2 Cannon 2 | . . 2 Launcher 7 | . 5 2 Special 47 | . 9 38 Kinetic 2 | . . 2 Thermal 73 | 10 23 40 Explosive 7 | . 5 2 Electromagnetic . | . . . Robot Hit Streak 4 | 2 3 4 Robot Miss Streak 3 | 2 3 1 Penetration Max . | . . . Secondary Targets . | . . . Shots Hit Robots 13 | 5 5 3 Core Hits 16 | 3 7 6 Critical Kills . | . . . Critical Parts Destroyed . | . . . Critical Strikes . | . . . Melee Attacks 5 | . . 5 Impact . | . . . Slashing 5 | . . 5 Piercing . | . . . Sneak Attacks . | . . . Combat Hostiles . | . . . Follow-up Attacks . | . . . Damage Inflicted 786 | 67 376 343 Guns 146 | 67 60 19 Cannons 26 | . . 26 Explosions 602 | . 316 286 Melee . | . . . Ramming . | . . . Kinetic 19 | . . 19 Thermal 261 | 67 156 38 Explosive 506 | . 220 286 Electromagnetic . | . . . Impact . | . . . Slashing . | . . . Piercing . | . . . Highest Corruption 12 | . . 12 Average Corruption 8 | . . 8 Corruption Purged . | . . . Corruption Blocked . | . . . Effects 1 | . . 1 Matter Fused 1 | . . 1 Overload Shots . | . . . Overflow Damage 7 | . 7 . Projectiles . | . . . Explosions 7 | . 7 . Melee . | . . . Knockbacks . | . . . Impact . | . . . Kinetic . | . . . Secondary . | . . . Self-Inflicted Damage 7 | . 7 . Shots 1 | . 1 . Rammed . | . . . Targets Rammed . | . . . Kicked . | . . . Crushed . | . . . Highest Temperature 168 | 168 151 9 Average Temperature 55 | 88 46 9 Received Heat Transfer 111 | 18 51 42 Siege Activations . | . . . Robots Corrupted . | . . . Combat Hostiles . | . . . Parts Fried . | . . . Impact Corruptions . | . . . Robots Melted . | . . . Combat Hostiles . | . . . Parts Melted 2 | 2 . . Heat Transferred 514 | 174 223 117 Parts Sabotaged . | . . . Parts Stolen . | . . . Parts Stripped . | . . . Power Chain Reactions . | . . . Alert | -11 -10 -10 ------- Run | Yrd Mat Sub Peak Influence 172 | 25 172 . Initial 16 | . 16 . Average 96 | 4 117 . Maximum Alert Level . | . . . Low Security (%) 100 | 100 100 . Level 1 . | . . . Level 2 . | . . . Level 3 . | . . . Level 4 . | . . . Level 5 . | . . . High Security . | . . . Max Security . | . . . Squads Dispatched . | . . . Investigation . | . . . Extermination . | . . . Reinforcement . | . . . Assault . | . . . Garrison . | . . . Intercept . | . . . Searches Triggered . | . . . Construction Impeded . | . . . Haulers Reinforced . | . . . Active Scanning Responses . | . . . Cargo Convoy Interrupts . | . . . Stealth | -11 -10 -10 --------- Run | Yrd Mat Sub Distress Signals . | . . . Communications Jammed . | . . . Distress Signals . | . . . Times Spotted 17 | 1 5 11 Peak Tracking Total 7 | 1 2 7 Tactical Retreats . | . . . Traps | -11 -10 -10 ------- Run | Yrd Mat Sub Traps Triggered 1 | . 1 . Indirectly . | . . . Trap Hack Attempts . | . . . Triggered . | . . . Disarmed . | . . . Reprogrammed . | . . . Reused . | . . . Traps Extracted . | . . . Installed . | . . . Triggered . | . . . Machines | -11 -10 -10 ---------- Run | Yrd Mat Sub Machines Disabled 2 | . 2 . Max in Single Turn 2 | . 2 . Machines Repaired . | . . . Machines Dismantled . | . . . Machines Sabotaged . | . . . Overloaded Fab Kills . | . . . Hacking | -11 -10 -10 --------- Run | Yrd Mat Sub Machines Accessed 1 | . 1 . Terminals 1 | . 1 . Fabricators . | . . . Repair Stations . | . . . Recycling Units . | . . . Scanalyzers . | . . . Garrison Access . | . . . Total Hacks 2 | . 2 . Successful 1 | . 1 . Failed 1 | . 1 . Catastrophic . | . . . Database Lockouts . | . . . Manual . | . . . Terminals 2 | . 2 . Fabricators . | . . . Repair Stations . | . . . Recycling Units . | . . . Scanalyzers . | . . . Garrison Access . | . . . Terminal Hacks 1 | . 1 . Locate Traps 1 | . 1 . Fabricator Hacks . | . . . Repair Station Hacks . | . . . Recycling Unit Hacks . | . . . Scanalyzer . | . . . Garrison Access Hacks . | . . . Unauthorized Hacks . | . . . Terminals . | . . . Fabricators . | . . . Repair Stations . | . . . Recycling Units . | . . . Scanalyzers . | . . . Garrison Access . | . . . Data Cores Recovered . | . . . Used . | . . . Hacking Detections . | . . . Full Trace Events . | . . . Feedback Events . | . . . Feedback Blocked . | . . . Robot Schematics Acquired . | . . . Robots Built . | . . . Authchips . | . . . Time . | . . . Total Robot Build Rating . | . . . Part Schematics Acquired . | . . . Parts Built . | . . . Authchips . | . . . Time . | . . . Total Part Build Rating . | . . . Parts Repaired . | . . . Time . | . . . Parts Recycled . | . . . Recycled Matter . | . . . Retrieved Matter . | . . . Retrieved Components . | . . . Parts Scanalyzed . | . . . Part Schematics Acquired . | . . . Parts Damaged . | . . . Bothacking | -11 -10 -10 ------------ Run | Yrd Mat Sub Used RIF Installer . | . . . Robots Hacked . | . . . Non-combat . | . . . Combat . | . . . Robot Hacks Applied . | . . . Relay Couplers Released . | . . . Fabnet Peak Effective % . | . . . Robots Rewired . | . . . Allies Hacked . | . . . Hacks Repelled . | . . . Allies | -11 -10 -10 -------- Run | Yrd Mat Sub Total Allies . | . . . Largest Group . | . . . Highest-Rated Group . | . . . Highest-Rated Ally . | . . . Total Orders . | . . . Ally Attacks . | . . . Total Damage . | . . . Kills . | . . . Allies Corrupted . | . . . Allies Melted 1 | . . 1 Intel | -11 -10 -10 ------- Run | Yrd Mat Sub Robot Analysis Total . | . . . Derelict Logs Recovered 1 | . . 1 Drone Launches . | . . . Drone Recoveries . | . . . Exploration | -11 -10 -10 ------------- Run | Yrd Mat Sub Turns Passed 1036 | 73 332 631 Spaces Moved 739 | 66 281 392 Core 17 | 17 . . Treads . | . . . Legs . | . . . Wheels 722 | 49 281 392 Hover . | . . . Flight . | . . . Fastest Speed 50 | 50 80 80 Average Speed 93 | 72 83 104 Slowest Speed 110 | 80 95 110 Overloaded Moves . | . . . Propulsion Burnouts . | . . . Robots Hopped . | . . . Cave-ins Triggered 3 | . . 3 Exploration Rate (%) 26 | 8 42 28 Regions Visited 2 Branch Regions 1 Pre-discovered Areas 1 | . . 1 Known Exits Taken . | . . . Unknown Exits Taken 2 | 1 1 . Scrap Searched . | . . . Spaces Dug 12 | . 4 8 Terrain Destroyed 62 | . 39 23 Melee 5 | . . 5 Projectile 7 | . 4 3 AOE 50 | . 35 15 Terrain Rammed . | . . . Walls Destroyed . | . . . Machines Disabled . | . . . Actions | -11 -10 -10 --------- Run | Yrd Mat Sub Total 901 | 78 329 494 Wait 16 | . 10 6 Move 736 | 65 280 391 Hop . | . . . Pick Up 16 | 3 3 10 Fast Attach 8 | 5 3 . Attach 4 | . . 4 Detach 2 | . 1 1 Swap 27 | . 9 18 Drop 17 | . 4 13 Fire 65 | 5 19 41 Melee 5 | . . 5 Ram . | . . . Kick . | . . . Crush . | . . . Escape Stasis 1 | . . 1 Rewire . | . . . Trap . | . . . Miscellaneous 4 | . . 4 Route ------- -11/Scrapyard -10/Materials (discovered 3 exits: [*Mat] / [*Min] / [*Sub]) -10/Subcaves History --------- Turn | Location | Event 2 | -11/Scrapyard | Met Revision 17 46 | -11/Scrapyard | Discovered new exit (range 8) 74 | -11/Scrapyard | Entered Materials 285 | -10/Materials | Discovered new exit (range 14) 310 | -10/Materials | Discovered new exit (range 14) 386 | -10/Materials | Discovered new exit (range 2) 406 | -10/Materials | Entered Subcaves 409 | -10/Subcaves | Learned location of Zion (-7) 522 | -10/Subcaves | Ambushed by swarm of Subdwellers 667 | -10/Subcaves | Shifting Twisted Machinery released Sub. Machine Gun 680 | -10/Subcaves | Shifting Twisted Machinery released Flamer 695 | -10/Subcaves | Ambushed by angry Subdweller bent on revenge 699 | -10/Subcaves | A swath of the cavern ceiling suddenly collapsed 837 | -10/Subcaves | Build established: Subdweller-Mutant 890 | -10/Subcaves | A swath of the cavern ceiling suddenly collapsed 1009 | -10/Subcaves | Crushed by falling debris 1009 | -10/Subcaves | Core integrity fell below 50% 1028 | -10/Subcaves | Crushed by falling debris 1029 | -10/Subcaves | System corruption reached 10% 1029 | -10/Subcaves | Ambushed by Subdweller buried in earth 1038 | -10/Subcaves | Crushed by falling debris 1038 | -10/Subcaves | Smashed by cave-in Last Messages --------------- The unstable cave ceiling collapses. Crushed by falling debris. Sub. Monowheel destroyed. System corrupted by crushing effect (+5). Mak. Sword destroyed. System corrupted by crushing effect (+1). [Achievement: System Compromised] The achievement interface (ESC then open Records) offers an effective way to explore all of your earned achievements as well as seek out new goals for future runs. System corrupted: Matter fused (-9). 21-IDS(R): "ARGHSUB!" 21-IDS(R) heat short circuits Sub. Monowheel. The unstable cave ceiling collapses. Crushed by falling debris. Flamer destroyed. System corrupted by crushing effect (+2). Scrap Shield destroyed. System corrupted by crushing effect (+5). Map ----- +----------------------------------------------------+ | ?????????????????????????????????????????????????? | | ?????????????????????????????????????????????????? | | ?????????????????????????????????????????????????? | | ?????????????????????????????????????????????????? | | ?????????????????????????????????????????????????? | | ?????????????????????????????????????????????????? | | ????????????? ?????????????????????????????????? | | ????????????? ?????????????????????????????????? | | ????????????# ?????????????????????????????? ??? | | ???????????? ?????????????????????????????? ?? | | ???????????? ??????????????????????????????? ?? | | ???????????? ?????????????????#?????????????#"? | | ???????????? ????????????????? ##????????????## | | ???????????? #?????????????????# #???###??????#" | | ???????????? #?????????????????# #???#"###???##" | | ???????????? ##????????????????# ##### #"####### | | ????????????# ????????????????## " # #""# | | ???????????? #????????????????# = ## | | ???????????? #????????????????###### | | ???????????## #?????????????????????# " | | ???????#####"####????????????????????## " | | ?????### ##" "###???????????????????## # | | ?????# #"" ##"#########????????????# % #### | | ?????# %## ## ""## ; ##???????????### * "#### | | ?????## ####"#" #"#"##; R#????????????#" ]! " | | ??????## ### """#######@ #????????????#" !%& " | | ????## #?# "######## ###????????????# [ # | | ## ######### ###?????????????# ##### | | ??# # ###?### ##????????? #???# | | # ### ####???# ##???? | | ## ## ##??### ##????# | | ????### ## #????### #??????# | | ??????### ### ### ##??????# ##???????# | | ????????## ##?#######% ######## ##????####?? | | ?????????###???????# #?????# ### | | ???????????????????# #??????# | | ???????????????????# #????### | | ???????????????????# ## ##???## | | ???????????????????# ## ##???## | | ???????????????????##### ## #??### | | ???????????????????????## ### ##?## | | ????????????????????????###### ##?## | | ????????????????????????##### ##### ###"### | | ???????????????????????## ## #?###?? | | ???????????????????????# ##???## | | ???????????????????????# ### | | ???????????????????????##### | | ???????????????????????????####### | | ?????????????????????????????????#### | | ????????????????????????????????????## | +----------------------------------------------------+ Best States ------------- Heat Dissipation 25 Energy Generation 10 Energy Capacity 125 Matter Stores 300 Matter Capacity 300 Sight Range 16 Terrain Scan Range 14 Terrain Scan Density 85 Armor Coverage 800 Evasion (%) 50 Item Schematics ----------------- None Robot Schematics ------------------ None Fabricated ------------ Nothing Alien Tech Used ----------------- None Achievements -------------- Part-time Excavator System Compromised Unlikely Earthworm Challenges ------------ None Game ------ Seed ProjectionMomentumCharge Manual? 0 Play Time 00:38:56 Cumulative 2.5 hours Start 2024.04.02 @ 00:58:29 End 2024.04.02 @ 01:38:49 Sessions 1 Manual Loads 0 Difficulty Rogue Special Mode None Game No. 2 Rogue 2 Adventurer 0 Explorer 0 Win Type - Total 0 Types 0/0/0/0/0/0/0/0/0 Lore% 0 Gallery% 3 Achievement% 3 Wizard Run 0 Options --------- Layout 1 ASCII 0 Keyboard 0 Movement Mouse Keybinds 0 Fullscreen 2 Font 24/Tallcaps Map View 50x35 Zoom Use 0% Tactical HUD 0 Map Filters NONE Filters NONE Steam 1 RUN: ee19eef2-5338-4544-b7c6-50eaf835c570